Cogmind - Beta 13 *** ADVENTURER MODE // 2024.06.23 @ 00:17:09 Player: swetpototo Result: Destroyed by S-43 Plague with Heavy Machine Gun Performance ------------- Evolutions (9) 4500 Regions Visited (14) 2800 Robots Destroyed (96) 480 Value Destroyed (3024) 3024 Prototype IDs (20) 400 Alien Tech Used (3) 600 Bonus (2597) 2597 TOTAL SCORE: 14401 Bonus ------- Follower Combat Kills 97 Entered DSFs 500 Met Sigix 2000 Cogmind --------- Core Integrity 0/1600 Matter 50/300 Energy 99/100 System Corruption 2% Temperature Cool (0) Movement Core (50) Location -1/Access Parts ------- > --- POWER (2) -------- (None) > --- PROPULSION (8) --- (None) > --- UTILITY (12) ----- (None) > --- WEAPON (3) ------- (None) > --- INVENTORY (5) ---- Light Quantum Reactor Improved Energy Well (400) Enhanced Nova Cannon Sigix Containment Pod Peak State ------------ > --- POWER ------------ Light Antimatter Reactor > --- PROPULSION ------- Gravmag Array Improved Antigrav System Experimental Gyrokinetic Inverter Impulse Thruster Experimental Q-thruster > --- UTILITY ---------- Improved Energy Well Advanced Melee Analysis Suite Quantum Capacitor Improved Cloaking Device Improved System Guard > --- WEAPON ----------- Nova Cannon > --- INVENTORY -------- Light Quantum Reactor Enhanced Nova Cannon Enhanced Nova Cannon Sigix Containment Pod [Rating: 104] Favorites ----------- Power Light Antimatter Reactor Engine Light Ion Engine Power Core Light Nuclear Core Reactor Light Antimatter Reactor Propulsion Light Treads Treads Light Treads Leg Aluminum Leg Hover Unit Gravmag Array Flight Unit Xenon Bombardment Thruster Utility High-capacity Storage Unit Device Quantum Capacitor Storage High-capacity Storage Unit Processor Improved Signal Interpreter Protection Hardened Heavy Armor Plating Weapon Improved Assault Rifle Energy Gun Particle Gun Energy Cannon Improved EM Pulse Cannon Ballistic Gun Improved Assault Rifle Impact Weapon Heavy Hammer Slashing Weapon Greatsword Build | -11 -10 -9 -9 -8 -7 -7 -6 -6 -5 -4 -3 -2 -2 -1 ------- Run | Yrd Mat Mat Sto Mat Fac DSF Fac Ext Fac Fac Res Res Qua Acc Slots Evolved 18 | . . 2 . 2 2 . 2 . 2 2 2 2 . 2 Power 1 | . . . . . 1 . . . . . . . . . Propulsion 6 | . . 2 . . . . . . . . 2 . . 2 Utility 10 | . . . . 2 . . 2 . 2 2 . 2 . . Weapon 1 | . . . . . 1 . . . . . . . . . Parts Attached 156 | 6 2 7 8 16 . 21 3 14 2 28 28 11 10 . Power 24 | 1 . 1 1 2 . . 1 4 . 4 7 3 . . Engine 8 | 1 . 1 1 . . . 1 3 . 1 . . . . Core 5 | . . . . 2 . . . 1 . 1 1 . . . Reactor 11 | . . . . . . . . . . 2 6 3 . . Propulsion 65 | 2 . 2 4 8 . 12 . 8 . 11 9 1 8 . Treads 25 | 2 . 2 4 4 . 5 . 8 . . . . . . Leg 16 | . . . . 4 . 7 . . . 5 . . . . Wheel . | . . . . . . . . . . . . . . . Hover 14 | . . . . . . . . . . 6 4 1 3 . Flight 10 | . . . . . . . . . . . 5 . 5 . Utility 32 | 1 2 1 . 2 . 4 1 2 1 7 5 5 1 . Device 15 | . . . . . . . 1 . 1 6 4 3 . . Storage 7 | 1 1 1 . . . 3 . . . . . . 1 . Processor 4 | . 1 . . 1 . . . . . . . 2 . . Hackware . | . . . . . . . . . . . . . . . Protection 6 | . . . . 1 . 1 . 2 . 1 1 . . . Artifact . | . . . . . . . . . . . . . . . Weapon 35 | 2 . 3 3 4 . 5 1 . 1 6 7 2 1 . Energy Gun 4 | . . . . 2 . . . . . 2 . . . . Energy Cannon 13 | . . . . . . 3 . . 1 . 6 2 1 . Ballistic Gun 16 | 2 . 2 3 2 . 2 . . . 4 1 . . . Ballistic Cannon . | . . . . . . . . . . . . . . . Launcher . | . . . . . . . . . . . . . . . Special Weapon . | . . . . . . . . . . . . . . . Impact Weapon 1 | . . 1 . . . . . . . . . . . . Slashing Weapon 1 | . . . . . . . 1 . . . . . . . Piercing Weapon . | . . . . . . . . . . . . . . . Special Melee Weapon . | . . . . . . . . . . . . . . . Unidentified Prototypes 13 | . . 1 . 1 . . 1 . . 1 2 1 6 . Corrupted Parts 2 | . . . . . . 1 . 1 . . . . . . System Corruption 11 | . . . . . . 6 . 5 . . . . . . Parts Lost 80 | . . . 4 9 . 8 . 14 3 19 15 . 1 7 Power 13 | . . . 1 1 . 1 . 2 2 4 1 . 1 . Propulsion 42 | . . . 2 7 . 4 . 8 1 6 10 . . 4 Utility 13 | . . . . . . 1 . 3 . 4 2 . . 3 Weapon 12 | . . . 1 1 . 2 . 1 . 5 2 . . . Highest Loss Streak 7 | . . . 3 4 . 4 . 7 2 6 5 . 1 7 To Critical Strikes 2 | . . . . 2 . . . . . . . . . . Average Slot Usage (%) 61 | . 91 90 97 75 76 59 53 56 44 53 20 23 44 24 Engine 3 | . 14 11 10 . . . . 6 3 2 . . . . Core 1 | . . . . 8 7 4 . . 5 . . . . . Reactor 1 | . . . . . . . . . . 1 5 7 3 . Treads 15 | . 28 35 42 17 7 2 26 24 14 2 . . . . Leg 4 | . . . . 11 23 21 . . . 10 . . . . Hover 1 | . . . . . . . . . . 1 4 3 12 7 Flight 1 | . . . . . . . . . . . 7 . 2 5 Device 3 | . . . . . . . 5 2 4 13 . 1 8 5 Storage 6 | . 14 11 11 9 7 7 6 6 5 4 . . 3 . Processor 6 | . 5 11 11 9 7 7 6 6 5 4 . 2 8 5 Protection 1 | . . . . 2 7 3 . 3 . 1 . . . . Energy Cannon 1 | . . . . . . 2 . . 1 3 . 5 3 1 Ballistic Gun 9 | . 28 21 21 14 7 8 2 . . 4 . . . . Naked Turns 114 | . . . . . . . . . . 1 59 10 . 44 Heaviest Build 87 | 11 26 54 53 71 71 71 48 80 61 87 38 53 34 22 Greatest Support 100 | 40 40 80 80 80 30 84 96 100 78 76 42 20 46 32 Greatest Overweight (x) 16 | 3 . . . 5 2 16 . 1 1 2 6 2 1 1 Average Overweight (x) . | . . . . 1 2 . . . . . . 1 . . Largest Inventory Capacity 20 | 8 15 20 20 20 20 20 20 20 20 20 5 5 5 5 Average Capacity 15 | 7 11 17 20 20 20 19 20 20 20 18 5 5 5 5 Most Carried 20 | 2 5 18 20 20 20 18 19 18 9 15 5 5 5 5 Average Carried 11 | 1 3 11 17 19 20 12 17 14 8 10 4 . 4 5 Final Capacity 20 | 8 15 20 20 20 20 20 20 20 20 5 5 5 5 5 Final Carried 20 | 2 5 18 20 20 20 18 18 9 8 5 3 5 5 5 Class Distribution -------------------- 52% | Mutant 37% | Scavenger-Mutant 4% | Sprinter 3% | Infiltrator-Mutant Dominant Class ---------------- Mutant | -10/Materials Mutant | -9/Materials Scavenger-Mutant | -9/Storage Scavenger-Mutant | -8/Materials Scavenger-Mutant | -7/Factory Mutant | -7/DSF Mutant | -6/Factory Mutant | -6/Extension Mutant | -5/Factory Scavenger-Mutant | -4/Factory Mutant | -3/Research Mutant | -2/Research Mutant | -2/Quarantine Mutant | -1/Access Resources | -11 -10 -9 -9 -8 -7 -7 -6 -6 -5 -4 -3 -2 -2 -1 ----------- Run | Yrd Mat Mat Sto Mat Fac DSF Fac Ext Fac Fac Res Res Qua Acc Matter Collected 2746 | 185 14 629 498 515 . 178 57 83 25 375 187 . . . Remotely . | . . . . . . . . . . . . . . . Salvage Created 4320 | . 14 883 737 1158 . 132 150 69 85 951 141 . . . Parts 214 | . 4 58 36 50 . 4 4 7 4 41 6 . . . Haulers Intercepted 8 | . . 3 3 2 . . . . . . . . . . Recyclers Shooed 7 | . . 1 2 1 . . 1 1 . . 1 . . . Parts Field Recycled . | . . . . . . . . . . . . . . . Retrieved Matter . | . . . . . . . . . . . . . . . Parts Self-Destructed . | . . . . . . . . . . . . . . . Prevented . | . . . . . . . . . . . . . . . Kills | -11 -10 -9 -9 -8 -7 -7 -6 -6 -5 -4 -3 -2 -2 -1 ------- Run | Yrd Mat Mat Sto Mat Fac DSF Fac Ext Fac Fac Res Res Qua Acc Combat Hostiles Destroyed 68 | . . 16 11 15 . 2 2 1 1 16 4 . . . Melee 3 | . . . . . . . 2 1 . . . . . . Guns 58 | . . 16 11 15 . 2 . . . 13 1 . . . Cannons 4 | . . . . . . . . . . 1 3 . . . Classes Destroyed 13 | . 1 7 1 2 . 1 . . . 1 . . . . Worker 3 | . . 2 1 . . . . . . . . . . . Builder 4 | . . 2 . 1 . . 1 . . . . . . . Hauler 8 | . . 3 3 2 . . . . . . . . . . Recycler 6 | . . . 1 4 . . . . . 1 . . . . Operator 1 | . . 1 . . . . . . . . . . . . Watcher 6 | . 1 3 . 2 . . . . . . . . . . Swarmer 21 | . . 6 . 4 . . . . . 7 4 . . . Grunt 29 | . . 8 8 7 . 1 1 . . 4 . . . . Brawler 1 | . . . . 1 . . . . . . . . . . Sentry 11 | . . 2 3 1 . . 1 1 1 2 . . . . Specialist 1 | . . . . . . 1 . . . . . . . . Hunter 3 | . . . . 2 . . . . . 1 . . . . Programmer 2 | . . . . . . . . . . 2 . . . . Best Kill Streak 5 | . 1 4 5 5 . 1 2 1 1 5 4 . . . Combat Bots Only 5 | . . 4 5 5 . 1 1 1 1 4 4 . . . Max Kills in Single Turn 2 | . 1 2 1 2 . 1 1 1 1 2 1 . . . Gunslinging 1 | . . 1 . 1 . . . . . 1 . . . . Exploded . | . . . . . . . . . . . . . . . Melee 1 | . . . . . . . 1 1 . . . . . . Uniques/NPCs Destroyed . | . . . . . . . . . . . . . . . Combat | -11 -10 -9 -9 -8 -7 -7 -6 -6 -5 -4 -3 -2 -2 -1 -------- Run | Yrd Mat Mat Sto Mat Fac DSF Fac Ext Fac Fac Res Res Qua Acc Hostile Shots Fired 1800 | . . 95 106 122 . 214 44 353 14 316 225 4 90 217 Missed 661 | . . 24 36 30 . 68 19 103 6 104 111 2 52 106 Damage Taken 15548 | . . 620 745 1000 . 2119 253 3612 152 2665 2033 45 375 1929 Core 4346 | . . 98 101 138 . 353 40 418 . 647 879 . 61 1611 Absorbed by Shields 44 | . . . . . . 44 . . . . . . . . Ignored by Resistances 4415 | . . 188 218 298 . 612 74 1024 41 762 553 12 106 527 Regen/Repaired (Parts) 134 | . . . 134 . . . . . . . . . . . Core Remaining (%) 68 | 100 100 . 50 74 . 49 . 46 100 43 32 . 89 . Volleys Fired 278 | . 3 51 47 69 . 14 . . 5 59 22 . 8 . Largest 3 | . 2 2 2 2 . 2 . . 1 3 1 . 1 . Hottest 146 | . 40 43 46 88 . 69 . . 69 146 113 . 113 . Shots Fired 491 | . 6 101 93 134 . 18 . . 5 104 22 . 8 . Gun 447 | . 6 101 93 134 . 10 . . . 96 7 . . . Cannon 44 | . . . . . . 8 . . 5 8 15 . 8 . Launcher . | . . . . . . . . . . . . . . . Special . | . . . . . . . . . . . . . . . Kinetic 402 | . 6 101 93 129 . 10 . . . 56 7 . . . Thermal 67 | . . . . 5 . . . . . 40 14 . 8 . Explosive . | . . . . . . . . . . . . . . . Electromagnetic 22 | . . . . . . 8 . . 5 8 1 . . . Robot Hit Streak 28 | . 2 26 28 28 . 23 . . 12 24 9 . . . Robot Miss Streak 3 | . 1 2 1 3 . 2 . . . 2 1 . . . Penetration Max . | . . . . . . . . . . . . . . . Secondary Targets 11 | . . 1 4 4 . . . . . 2 . . . . Max Gunslinging Chain 1 | . . 1 1 1 . . . . . 1 . . . . Shots Hit Robots 419 | . 3 85 84 114 . 14 12 2 5 83 17 . . . Core Hits 176 | . 2 40 26 46 . 6 2 3 2 39 9 . 1 . Critical Kills 2 | . . 1 . 1 . . . . . . . . . . Critical Parts Destroyed 4 | . . 3 1 . . . . . . . . . . . Critical Strikes 12 | . . 4 1 2 . . 3 1 . 1 . . . . Burn 2 | . . . . 1 . . . . . 1 . . . . Destroy 6 | . . 4 1 1 . . . . . . . . . . Sever 4 | . . . . . . . 3 1 . . . . . . Melee Attacks 20 | . . 5 . . . . 12 3 . . . . . . Impact 5 | . . 5 . . . . . . . . . . . . Slashing 15 | . . . . . . . 12 3 . . . . . . Piercing . | . . . . . . . . . . . . . . . Sneak Attacks 5 | . . 2 . . . . 3 . . . . . . . Combat Hostiles . | . . . . . . . . . . . . . . . Follow-up Attacks . | . . . . . . . . . . . . . . . Damage Inflicted 7947 | . 26 1204 1176 1663 . 319 735 140 123 1845 631 2 72 11 Guns 5530 | . 26 1044 1176 1663 . 168 . . . 1367 86 . . . Cannons 975 | . . . . . . 151 . . 123 240 461 . . . Explosions 238 | . . . . . . . . . . 238 . . . . Melee 1001 | . . 160 . . . . 735 106 . . . . . . Ramming 203 | . . . . . . . . 34 . . 84 2 72 11 Kinetic 4892 | . 26 1044 1176 1581 . 168 . . . 811 86 . . . Thermal 1314 | . . . . 82 . . . . . 794 438 . . . Explosive . | . . . . . . . . . . . . . . . Electromagnetic 537 | . . . . . . 151 . . 123 240 23 . . . Impact 160 | . . 160 . . . . . . . . . . . . Slashing 841 | . . . . . . . 735 106 . . . . . . Piercing . | . . . . . . . . . . . . . . . Highest Corruption 6 | . . . . 4 . 6 . 5 . 4 2 . . 2 Average Corruption 3 | . . . . 4 . 6 . 5 . 3 1 . . 1 Corruption Purged . | . . . . . . . . . . . . . . . Corruption Blocked . | . . . . . . . . . . . . . . . Effects 22 | . . . . 3 . 3 . 4 . 11 1 . . . Message Errors 4 | . . . . . . 1 . . . 3 . . . . Matter Fused 9 | . . . . . . 2 . . . 6 1 . . . Heat Flow Errors 2 | . . . . . . . . 2 . . . . . . Energy Discharges 3 | . . . . 1 . . . 1 . 1 . . . . Parts Rejected 1 | . . . . . . . . 1 . . . . . . Parts Fused 1 | . . . . . . . . . . 1 . . . . Data Loss (minor) 1 | . . . . 1 . . . . . . . . . . Data Loss (major) 1 | . . . . 1 . . . . . . . . . . Overload Shots . | . . . . . . . . . . . . . . . Overflow Damage 285 | . . 78 . . . . 155 . . 26 26 . . . Projectiles 27 | . . . . . . . . . . 1 26 . . . Explosions 25 | . . . . . . . . . . 25 . . . . Melee 233 | . . 78 . . . . 155 . . . . . . . Knockbacks . | . . . . . . . . . . . . . . . Impact . | . . . . . . . . . . . . . . . Kinetic . | . . . . . . . . . . . . . . . Secondary . | . . . . . . . . . . . . . . . Self-Inflicted Damage 144 | . . . . . . . . . . 64 40 1 34 5 Shots 1 | . . . . . . . . . . 1 . . . . Rammed 29 | . . . . . . . . 3 . . 18 1 5 2 Targets Rammed 29 | . . . . . . . . 3 . . 18 1 5 2 Kicked . | . . . . . . . . . . . . . . . Crushed . | . . . . . . . . . . . . . . . Highest Temperature 488 | . . 24 31 135 . . . 250 56 488 449 . . . Average Temperature 104 | . . 3 10 29 . . . 90 36 180 128 . . . Received Heat Transfer 3918 | . . 339 447 540 . 348 108 1293 36 479 256 18 27 27 Effects 8 | . . . . . . . . . . 3 5 . . . Shutdowns 3 | . . . . . . . . . . 2 1 . . . Energy Bleed 3 | . . . . . . . . . . . 3 . . . Short Circuit 1 | . . . . . . . . . . 1 . . . . Damage (minor) 1 | . . . . . . . . . . . 1 . . . Siege Activations . | . . . . . . . . . . . . . . . Robots Corrupted 2 | . . . . . . . . . 1 1 . . . . Combat Hostiles 2 | . . . . . . . . . 1 1 . . . . Parts Fried 4 | . . . . . . 1 . . 2 1 . . . . Impact Corruptions 1 | . . 1 . . . . . . . . . . . . Robots Melted 1 | . . . . . . . . . . 1 . . . . Combat Hostiles 1 | . . . . . . . . . . 1 . . . . Parts Melted 5 | . . . . . . . . . . 5 . . . . Heat Transferred 1913 | . . . . 259 . . . . . 1247 407 . . . Parts Sabotaged . | . . . . . . . . . . . . . . . Parts Stolen . | . . . . . . . . . . . . . . . Parts Stripped . | . . . . . . . . . . . . . . . Power Chain Reactions 1 | . . . . . . . . . . 1 . . . . Alert | -11 -10 -9 -9 -8 -7 -7 -6 -6 -5 -4 -3 -2 -2 -1 ------- Run | Yrd Mat Mat Sto Mat Fac DSF Fac Ext Fac Fac Res Res Qua Acc Peak Influence 370 | . 22 317 300 370 102 172 168 121 57 300 198 78 78 60 Initial 113 | . . 7 79 72 102 62 68 70 27 19 113 63 37 40 Average 111 | . 12 135 179 212 102 106 103 80 30 76 109 63 52 37 Maximum Alert Level 1 | . . 1 1 1 . . . . . 1 . . . . Low Security (%) 81 | 100 100 65 58 36 100 100 100 100 100 92 100 100 100 100 Level 1 18 | . . 34 41 63 . . . . . 7 . . . . Level 2 . | . . . . . . . . . . . . . . . Level 3 . | . . . . . . . . . . . . . . . Level 4 . | . . . . . . . . . . . . . . . Level 5 . | . . . . . . . . . . . . . . . High Security . | . . . . . . . . . . . . . . . Max Security . | . . . . . . . . . . . . . . . Squads Dispatched 22 | . . 2 3 2 . 2 . 1 . 7 4 . 1 . Investigation 8 | . . 1 1 . . . . . . 3 3 . . . Extermination 2 | . . . . . . . . . . 2 . . . . Reinforcement 12 | . . 1 2 2 . 2 . 1 . 2 1 . 1 . Assault . | . . . . . . . . . . . . . . . Garrison . | . . . . . . . . . . . . . . . Intercept . | . . . . . . . . . . . . . . . Searches Triggered . | . . . . . . . . . . . . . . . Construction Impeded 3 | . . . . . . . . 1 . 1 . . 1 . Haulers Reinforced . | . . . . . . . . . . . . . . . Active Scanning Responses . | . . . . . . . . . . . . . . . Cargo Convoy Interrupts . | . . . . . . . . . . . . . . . Stealth | -11 -10 -9 -9 -8 -7 -7 -6 -6 -5 -4 -3 -2 -2 -1 --------- Run | Yrd Mat Mat Sto Mat Fac DSF Fac Ext Fac Fac Res Res Qua Acc Distress Signals 16 | . . 4 1 2 . . . 3 . 1 2 . . 3 Communications Jammed . | . . . . . . . . . . . . . . . Distress Signals . | . . . . . . . . . . . . . . . Times Spotted 221 | . 1 23 18 20 . 18 4 23 2 39 33 1 10 29 Peak Tracking Total 24 | . 1 4 7 4 . 7 3 12 2 23 12 1 9 24 Tactical Retreats 24 | . . 2 . . . 5 1 4 . 2 8 . . 2 Traps | -11 -10 -9 -9 -8 -7 -7 -6 -6 -5 -4 -3 -2 -2 -1 ------- Run | Yrd Mat Mat Sto Mat Fac DSF Fac Ext Fac Fac Res Res Qua Acc Traps Triggered 6 | . . . 1 . . 2 1 . . . 2 . . . Indirectly . | . . . . . . . . . . . . . . . Trap Hack Attempts . | . . . . . . . . . . . . . . . Triggered . | . . . . . . . . . . . . . . . Disarmed . | . . . . . . . . . . . . . . . Reprogrammed 1 | . . . 1 . . . . . . . . . . . Reused . | . . . . . . . . . . . . . . . Traps Extracted . | . . . . . . . . . . . . . . . Installed . | . . . . . . . . . . . . . . . Triggered . | . . . . . . . . . . . . . . . Machines | -11 -10 -9 -9 -8 -7 -7 -6 -6 -5 -4 -3 -2 -2 -1 ---------- Run | Yrd Mat Mat Sto Mat Fac DSF Fac Ext Fac Fac Res Res Qua Acc Machines Disabled 9 | . . . . . . . . 2 . 1 2 . 4 . Max in Single Turn 1 | . . . . . . . . 1 . 1 1 . 1 . Garrison Access 3 | . . . 1 . . . 1 . . . 1 . . . Machines Repaired . | . . . . . . . . . . . . . . . Machines Dismantled . | . . . . . . . . . . . . . . . Machines Sabotaged . | . . . . . . . . . . . . . . . Overloaded Fab Kills . | . . . . . . . . . . . . . . . Hacking | -11 -10 -9 -9 -8 -7 -7 -6 -6 -5 -4 -3 -2 -2 -1 --------- Run | Yrd Mat Mat Sto Mat Fac DSF Fac Ext Fac Fac Res Res Qua Acc Machines Accessed 42 | . . 5 5 2 1 . 2 3 1 7 8 . 6 2 Terminals 30 | . . 4 3 1 1 . 1 3 1 3 5 . 6 2 Fabricators 3 | . . . . . . . . . . 2 1 . . . Repair Stations 3 | . . . 1 . . . . . . 1 1 . . . Recycling Units . | . . . . . . . . . . . . . . . Scanalyzers 3 | . . 1 . 1 . . . . . 1 . . . . Garrison Access 3 | . . . 1 . . . 1 . . . 1 . . . Total Hacks 105 | . . 14 17 11 1 . 4 3 1 20 25 . 7 2 Successful 60 | . . 8 13 11 1 . 2 3 . 8 8 . 6 . Failed 45 | . . 6 4 . . . 2 . 1 12 17 . 1 2 Catastrophic 9 | . . 2 1 . . . . . . 2 3 . . 1 Database Lockouts . | . . . . . . . . . . . . . . . Manual 5 | . . . . . . . . . . . 1 . 1 3 Terminals 67 | . . 11 12 1 1 . 3 3 1 7 19 . 7 2 Fabricators 8 | . . . . . . . . . . 5 3 . . . Repair Stations 9 | . . . 3 . . . . . . 4 2 . . . Recycling Units . | . . . . . . . . . . . . . . . Scanalyzers 17 | . . 3 . 10 . . . . . 4 . . . . Garrison Access 4 | . . . 2 . . . 1 . . . 1 . . . Terminal Hacks 35 | . . 5 10 1 1 . 1 3 . 3 5 . 6 . Record 4 | . . . . . . . . . . . . . 4 . Part Schematic 1 | . . . . . . . . . . 1 . . . . Prototype ID Bank 6 | . . 2 2 . . . . . . 1 1 . . . Open Door 4 | . . . . . . . . 3 . . . . 1 . Open DSF 3 | . . . . . 1 . 1 . . . 1 . . . Level Access Points 1 | . . . . . . . . . . 1 . . . . Branch Access Points 1 | . . . . . . . . . . . 1 . . . Emergency Access Points 1 | . . . 1 . . . . . . . . . . . Alert Level 2 | . . . 1 . . . . . . . . . 1 . Unreport Threat 4 | . . 2 . . . . . . . . 2 . . . Locate Traps 1 | . . . 1 . . . . . . . . . . . Reprogram Traps 1 | . . . 1 . . . . . . . . . . . Maintenance Status 1 | . . . 1 . . . . . . . . . . . Transport Status 1 | . . 1 . . . . . . . . . . . . Extermination Status 1 | . . . 1 . . . . . . . . . . . Hauler Manifests 1 | . . . 1 . . . . . . . . . . . Zone Layout 2 | . . . 1 1 . . . . . . . . . . Fabricator Hacks 2 | . . . . . . . . . . 2 . . . . Network Status 1 | . . . . . . . . . . 1 . . . . Build 1 | . . . . . . . . . . 1 . . . . Repair Station Hacks 5 | . . . 2 . . . . . . 1 2 . . . Scan Component 2 | . . . 1 . . . . . . . 1 . . . Repair 2 | . . . 1 . . . . . . . 1 . . . Refit 1 | . . . . . . . . . . 1 . . . . Recycling Unit Hacks . | . . . . . . . . . . . . . . . Scanalyzer 15 | . . 3 . 10 . . . . . 2 . . . . Insert Component 7 | . . 1 . 5 . . . . . 1 . . . . Analyze 8 | . . 2 . 5 . . . . . 1 . . . . Garrison Access Hacks 3 | . . . 1 . . . 1 . . . 1 . . . Seal Access 3 | . . . 1 . . . 1 . . . 1 . . . Unauthorized Hacks . | . . . . . . . . . . . . . . . Terminals . | . . . . . . . . . . . . . . . Fabricators . | . . . . . . . . . . . . . . . Repair Stations . | . . . . . . . . . . . . . . . Recycling Units . | . . . . . . . . . . . . . . . Scanalyzers . | . . . . . . . . . . . . . . . Garrison Access . | . . . . . . . . . . . . . . . Data Cores Recovered . | . . . . . . . . . . . . . . . Used . | . . . . . . . . . . . . . . . Hacking Detections 27 | . . 3 3 2 . . . 1 1 7 6 . 2 2 Full Trace Events 10 | . . 2 1 1 . . . . . 3 3 . . . Feedback Events . | . . . . . . . . . . . . . . . Feedback Blocked . | . . . . . . . . . . . . . . . Robot Schematics Acquired . | . . . . . . . . . . . . . . . Robots Built . | . . . . . . . . . . . . . . . Authchips . | . . . . . . . . . . . . . . . Time . | . . . . . . . . . . . . . . . Total Robot Build Rating . | . . . . . . . . . . . . . . . Part Schematics Acquired 7 | . . 1 . 5 . . . . . 1 . . . . Parts Built 2 | . . . . . . . . . . 2 . . . . Authchips . | . . . . . . . . . . . . . . . Time 117 | . . . . . . . . . . 117 . . . . Total Part Build Rating 14 | . . . . . . . . . . 14 . . . . Parts Repaired 2 | . . . 1 . . . . . . . 1 . . . Time 65 | . . . 26 . . . . . . . 39 . . . Parts Recycled . | . . . . . . . . . . . . . . . Recycled Matter . | . . . . . . . . . . . . . . . Retrieved Matter . | . . . . . . . . . . . . . . . Retrieved Components . | . . . . . . . . . . . . . . . Parts Scanalyzed 7 | . . 1 . 5 . . . . . 1 . . . . Part Schematics Acquired 6 | . . 1 . 5 . . . . . . . . . . Parts Damaged . | . . . . . . . . . . . . . . . Bothacking | -11 -10 -9 -9 -8 -7 -7 -6 -6 -5 -4 -3 -2 -2 -1 ------------ Run | Yrd Mat Mat Sto Mat Fac DSF Fac Ext Fac Fac Res Res Qua Acc Used RIF Installer . | . . . . . . . . . . . . . . . Robots Hacked . | . . . . . . . . . . . . . . . Non-combat . | . . . . . . . . . . . . . . . Combat . | . . . . . . . . . . . . . . . Robot Hacks Applied . | . . . . . . . . . . . . . . . Relay Couplers Released . | . . . . . . . . . . . . . . . Fabnet Peak Effective % . | . . . . . . . . . . . . . . . Robots Rewired . | . . . . . . . . . . . . . . . Allies Hacked . | . . . . . . . . . . . . . . . Hacks Repelled . | . . . . . . . . . . . . . . . Allies | -11 -10 -9 -9 -8 -7 -7 -6 -6 -5 -4 -3 -2 -2 -1 -------- Run | Yrd Mat Mat Sto Mat Fac DSF Fac Ext Fac Fac Res Res Qua Acc Total Allies 4 | . . . . . . . . 4 . . . . . . Largest Group 2 | . . . . . . . . 2 . . . . . . Highest-Rated Group 51 | . . . . . . . . 51 . . . . . . Highest-Rated Ally 31 | . . . . . . . . 31 . . . . . . Total Orders 4 | . . . . . . . . . 3 . 1 . . . ROAM 1 | . . . . . . . . . 1 . . . . . EXPLORE 3 | . . . . . . . . . 2 . 1 . . . Ally Attacks 21 | . . . . . . . . 21 . . . . . . Total Damage 538 | . . . . . . . . 538 . . . . . . Kills 3 | . . . . . . . . 3 . . . . . . Allies Corrupted . | . . . . . . . . . . . . . . . Allies Melted . | . . . . . . . . . . . . . . . Intel | -11 -10 -9 -9 -8 -7 -7 -6 -6 -5 -4 -3 -2 -2 -1 ------- Run | Yrd Mat Mat Sto Mat Fac DSF Fac Ext Fac Fac Res Res Qua Acc Robot Analysis Total . | . . . . . . . . . . . . . . . Derelict Logs Recovered . | . . . . . . . . . . . . . . . Drone Launches 4 | . . . . . . . . . 2 . 2 . . . Drone Recoveries 1 | . . . . . . . . . . . 1 . . . Exploration | -11 -10 -9 -9 -8 -7 -7 -6 -6 -5 -4 -3 -2 -2 -1 ------------- Run | Yrd Mat Mat Sto Mat Fac DSF Fac Ext Fac Fac Res Res Qua Acc Turns Passed 5591 | 69 176 631 574 797 29 300 245 357 234 985 561 242 241 150 Spaces Moved 3799 | 44 102 270 245 267 12 149 122 188 126 567 907 174 332 294 Core 233 | 23 . . . . . 1 . . . 7 99 16 . 87 Treads 1315 | 21 102 270 245 133 . 14 122 188 126 94 . . . . Legs 592 | . . . . 134 12 134 . . . 312 . . . . Wheels . | . . . . . . . . . . . . . . . Hover 1034 | . . . . . . . . . . 154 241 158 332 149 Flight 625 | . . . . . . . . . . . 567 . . 58 Fastest Speed 20 | 50 160 160 160 160 260 120 157 150 155 46 29 50 52 20 Average Speed 109 | 135 160 160 160 210 260 152 160 173 176 113 40 128 52 49 Slowest Speed 850 | 200 160 160 160 470 260 850 161 243 240 270 520 160 106 100 Overloaded Moves . | . . . . . . . . . . . . . . . Propulsion Burnouts . | . . . . . . . . . . . . . . . Robots Hopped 3 | . . . . . . . . . . . 3 . . . Cave-ins Triggered . | . . . . . . . . . . . . . . . Teleports 1 | . . . . . . . . . . . . . 1 . Exploration Rate (%) 25 | 5 14 26 50 34 . 78 5 30 6 20 29 4 50 10 Regions Visited 14 Branch Regions 3 Pre-discovered Areas . | . . . . . . . . . . . . . . . Known Exits Taken 7 | . 1 1 1 1 1 . 1 . . 1 . . . . Unknown Exits Taken 6 | 1 . . . . . . . 1 1 . 1 1 1 . Scrap Searched . | . . . . . . . . . . . . . . . Spaces Dug 2 | . . 2 . . . . . . . . . . . . Terrain Destroyed 6 | . . 2 . . . . . . . 4 . . . . Melee 2 | . . 2 . . . . . . . . . . . . Projectile . | . . . . . . . . . . . . . . . AOE 4 | . . . . . . . . . . 4 . . . . Terrain Rammed . | . . . . . . . . . . . . . . . Walls Destroyed . | . . . . . . . . . . . . . . . Machines Disabled . | . . . . . . . . . . . . . . . Actions | -11 -10 -9 -9 -8 -7 -7 -6 -6 -5 -4 -3 -2 -2 -1 --------- Run | Yrd Mat Mat Sto Mat Fac DSF Fac Ext Fac Fac Res Res Qua Acc Total 4687 | 51 109 363 336 368 11 202 147 208 132 807 1074 191 388 300 Wait 278 | . . 20 22 . . . 9 . . 136 79 . 12 . Move 3780 | 43 101 269 244 266 11 148 121 187 125 566 900 174 331 294 Hop 3 | . . . . . . . . . . . 3 . . . Pick Up 56 | 2 2 9 8 5 . 3 1 1 . 10 5 2 7 1 Fast Attach 103 | 6 2 4 3 13 . 16 2 5 1 19 15 6 11 . Attach 44 | . . . 2 1 . 1 1 8 1 9 12 4 5 . Detach 33 | . 1 2 . 1 . 10 1 . . 5 8 3 2 . Swap 16 | . . 3 3 2 . 4 . 1 . . 2 1 . . Drop 46 | . . . 7 11 . 4 . . . 3 10 1 7 3 Fire 278 | . 3 51 47 69 . 14 . . 5 59 22 . 8 . Melee 20 | . . 5 . . . . 12 3 . . . . . . Ram 25 | . . . . . . . . . . . 18 . 5 2 Kick . | . . . . . . . . . . . . . . . Crush 3 | . . . . . . . . 3 . . . . . . Escape Stasis 2 | . . . . . . 2 . . . . . . . . Rewire . | . . . . . . . . . . . . . . . Trap . | . . . . . . . . . . . . . . . Miscellaneous . | . . . . . . . . . . . . . . . Route ------- -11/Scrapyard -10/Materials -9/Materials -9/Storage -8/Materials -7/Factory -7/DSF -6/Factory -6/Extension -5/Factory -4/Factory (discovered 4 exits: *Res x4) -3/Research (discovered 4 exits: [*Res] / Arm / Tes x2) -2/Research -2/Quarantine -1/Access History --------- Turn | Location | Event 11 | -11/Scrapyard | Discovered new exit (range 16) 70 | -11/Scrapyard | Entered Materials 139 | -10/Materials | Discovered new exit (range 11) 244 | -10/Materials | Identified exit to Materials 246 | -10/Materials | Entered another Materials area 246 | -9/Materials | Evolved 2 slots: Propulsion x2 313 | -9/Materials | Build established: Mutant 754 | -9/Materials | Discovered new exit (range 15) 875 | -9/Materials | Identified exit to Storage 877 | -9/Materials | Entered Storage 886 | -9/Storage | Build established: Scavenger-Mutant 924 | -9/Storage | Repaired Lgt. Treads 1023 | -9/Storage | Lost 3 parts (2n1w) 1397 | -9/Storage | Discovered new exit (range 16) 1449 | -9/Storage | Identified exit to Materials 1451 | -9/Storage | Entered Materials 1451 | -8/Materials | Evolved 2 slots: Utility x2 1839 | -8/Materials | Lost 3 parts (3n) 1989 | -8/Materials | Lost 4 parts (1p2n1w) 2232 | -8/Materials | Discovered new exit (range 7) 2245 | -8/Materials | Identified exit to Factory 2248 | -8/Materials | Entered Factory 2248 | -7/Factory | Evolved 2 slots: Power x1, Weapon x1 2277 | -7/Factory | Identified exit to DSF 2277 | -7/Factory | Entered DSF 2311 | -7/DSF | Additional patrols routed to DSF 2446 | -7/DSF | Lost 4 parts (2n1u1w) 2510 | -7/DSF | Discovered new exit (range 16) 2575 | -7/DSF | Core integrity fell below 50% 2576 | -7/DSF | Identified exit to Factory 2577 | -7/DSF | Entered Factory 2577 | -6/Factory | Evolved 2 slots: Utility x2 2581 | -6/Factory | Build established: Mutant 2582 | -6/Factory | Lost 3 parts (2n1w) 2798 | -6/Factory | Discovered new exit (range 15) 2821 | -6/Factory | Identified exit to Extension 2822 | -6/Factory | Entered Extension 2837 | -6/Extension | Disrupted transfer network 2960 | -6/Extension | Spotted B-75 Beast 2972 | -6/Extension | Spotted B-75 Beast 3024 | -6/Extension | Rescued a captive Derelict 3029 | -6/Extension | Rescued a captive Derelict 3036 | -6/Extension | Lost 7 parts (1p3n2u1w) 3069 | -6/Extension | Rescued a captive Derelict 3072 | -6/Extension | Rescued a captive Derelict 3117 | -6/Extension | Lost 4 allies 3174 | -6/Extension | Core integrity fell below 50% 3176 | -6/Extension | Discovered new exit (range 3) 3179 | -6/Extension | Entered Factory 3179 | -5/Factory | Evolved 2 slots: Utility x2 3205 | -5/Factory | Lost 5 parts (4n1u) 3406 | -5/Factory | Discovered new exit (range 3) 3413 | -5/Factory | Entered another Factory area 3413 | -4/Factory | Evolved 2 slots: Utility x2 3683 | -4/Factory | Fabricated Adv. VSS Leg (x2) 3766 | -4/Factory | Found Quantum Capacitor 3848 | -4/Factory | Identified exit to Research 4106 | -4/Factory | Lost 6 parts (1p2n2u1w) 4274 | -4/Factory | Released all parts (10) 4297 | -4/Factory | Lost 4 parts (1p2n1u) 4374 | -4/Factory | Spotted B-86 Titan 4395 | -4/Factory | Core integrity fell below 50% 4398 | -4/Factory | Entered Research 4398 | -3/Research | Evolved 2 slots: Propulsion x2 4421 | -3/Research | Lost 6 parts (1p2n1u2w) 4484 | -3/Research | Repaired Broken Antigrav System 4606 | -3/Research | Lost 5 parts (2n1u2w) 4659 | -3/Research | Spotted B-86 Titan 4682 | -3/Research | Spotted B-86 Titan 4714 | -3/Research | Found Prototype Device 4714 | -3/Research | Identified Adv. EM Disruption Field 4718 | -3/Research | Identified exit to Armory 4718 | -3/Research | Identified exit to Testing 4821 | -3/Research | Lost 4 parts (3n1u) 4923 | -3/Research | Core integrity fell below 50% 4956 | -3/Research | Discovered new exit (range 6) 4959 | -3/Research | Entered another Research area 4959 | -2/Research | Evolved 2 slots: Utility x2 4968 | -2/Research | Lost 3 parts (1p2n) 5193 | -2/Research | Found Quantum Capacitor 5195 | -2/Research | Found Prototype Device 5195 | -2/Research | Identified Exp. Actuator Array 5197 | -2/Research | Discovered new exit (range 6) 5201 | -2/Research | Entered Quarantine 5205 | -2/Quarantine | Found Alien Artifact 5205 | -2/Quarantine | Identified Hpw. Transdimensional Reconstructor 5205 | -2/Quarantine | Warped through subspace 5223 | -2/Quarantine | Met incapacitated Sigix Warrior 5223 | -2/Quarantine | Lockdown squad dispatched 5229 | -2/Quarantine | Acquired the access code to the Sigix quarantine chamber 5230 | -2/Quarantine | Unlocked Sigix quarantine chamber 5262 | -2/Quarantine | Found Alien Artifact 5262 | -2/Quarantine | Identified Terrabomb 5262 | -2/Quarantine | Used Terrabomb 5270 | -2/Quarantine | Spotted Lightning 5289 | -2/Quarantine | Found Terrabomb 5289 | -2/Quarantine | Used Terrabomb 5310 | -2/Quarantine | Found Alien Artifact 5310 | -2/Quarantine | Identified Subatomic Replicator 5349 | -2/Quarantine | Found Sigix Corpse 5440 | -2/Quarantine | Discovered new exit (range 4) 5442 | -2/Quarantine | Entered Access 5442 | -1/Access | Evolved 2 slots: Propulsion x2 5548 | -1/Access | Released all parts (2) 5561 | -1/Access | Core integrity fell below 50% 5576 | -1/Access | Core integrity fell below 20% 5578 | -1/Access | Lost 7 parts (4n3u) 5592 | -1/Access | Destroyed by S-43 Plague with Heavy Machine Gun Last Messages --------------- 05543_ Impulse Thruster destroyed. 05547_ Exp. Q-thruster destroyed. 05547_ Adv. Melee Analysis Suite destroyed. 05547_ Imp. System Guard destroyed. 05548_ Released Exp. Gyrokinetic Inverter. 05548_ Released Quantum Capacitor. 05549_ Slammed into S-43 Plague. 05558_ Slug penetrates Wall. 05566_ Slammed into S-43 Plague. 05567_ Slug penetrates Wall. 05568_ ALERT: Security rotation in progress. 05568_ Penetrated by Slug. 05570_ P-80 Master resets M-36 Artificer, system corruption cleaned. 05571_ Penetrated by Slug. 05571_ P-80 Master resets S-43 Plague, system corruption cleaned. 05583_ S-43 Plague destroyed. 05586_ Connecting with Terminal... 05591_ K-01 Serf cleans the Fabricator. Map ----- +----------------------------------------------------+ | #??????????????????????????????????? | | #??????????????????????????????????? | | #??????????????????????????????????? | | #################????????????????????????????????? | | # ????????????????????????????????? | | # #???????????????????????????????? | | + ????????????????????????????????? | | # * " " ??????????????????????????????????? | | # """ """ ??????????????????????????????????? | | # """ """ #???????????????????????????????? | | # " " #???????????????????????????????? | | # #???????????????????????????????? | | # #???""??????????????????????????? | | ##################?#""R""????????????????????????? | | #??#################"" ""######??????????????????? | | #?? * ! # ??????????????????? | | #? # ??????????????????? | | #? # ^ ???????????????????? | | # ! # #???????????????????? | | # # ! #???????????????????? | | + # #???????????????????? | | # ""T"" # #???????????????????? | | # """""?????# ! #???????????????????? | | ############## #???????????????????? | | =%* #???????????????????? | | ==[ !!! @ #???????????????????? | | !!! #???????????????????? | | !! #???????????????????? | | #???????????????????? | | #???????????????????? | | kk ????????????? | | ###############"" ""# """###### ????????????? | | ??????????????#""T""#"" F""#?????????????????????? | | ??????????????# """ #""""""#?????????????????????? | | ??????????????####### """" #?????????????????????? | | ????????????????????########?????????????????????? | | ?????????????????????????????????????????????????? | | ?????????????????????????????????????????????????? | | ?????????????????????????????????????????????????? | | ?????????????????????????????????????????????????? | | ?????????????????????????????????????????????????? | | ?????????????????????????????????????????????????? | | ?????????????????????????????????????????????????? | | ?????????????????????????????????????????????????? | | ?????????????????????????????????????????????????? | | ?????????????????????????????????????????????????? | | ?????????????????????????????????????????????????? | | ?????????????????????????????????????????????????? | | ?????????????????????????????????????????????????? | | ?????????????????????????????????????????????????? | +----------------------------------------------------+ Best States ------------- Heat Dissipation 52 Energy Generation 41 Energy Capacity 570 Matter Stores 430 Matter Capacity 450 Sight Range 16 Terrain Scan Density 10 ECM Strength 2 Jamming Range 14 Cloak Strength 3 Additional Mass Support 12 Corruption Containment 12 Armor Coverage 600 Resistance: KI 20 Resistance: TH 20 Resistance: EX 20 Resistance: EM 20 Resistance: I 20 Resistance: S 20 Resistance: P 20 Evasion (%) 66 Melee Accuracy 8 Recoil Reduction 4 Offensive Hacking 10 Item Schematics ----------------- Visual Processing Unit | -9/Materials | Scanalyzed Hpw. Shotgun | -8/Materials | Scanalyzed Lgt. Armor Plating | -8/Materials | Scanalyzed Cld. Ion Engine | -8/Materials | Scanalyzed Hvy. Hammer | -8/Materials | Scanalyzed Rocket Launcher | -8/Materials | Scanalyzed Fusion Bomb Launcher | -4/Factory | Hacked Robot Schematics ------------------ None Fabricated ------------ Adv. VSS Leg | x2 | -4/Factory | Preloaded Alien Tech Used ----------------- High-powered Transdimensional Reconstructor Terrabomb Subatomic Replicator Achievements -------------- None Challenges ------------ None Game ------ Seed ArmorMicroOptics Manual? 0 Play Time 01:27:57 Cumulative 32.0 hours Start 2024.06.22 @ 22:52:43 End 2024.06.23 @ 00:17:09 Sessions 1 Manual Loads 0 Difficulty Adventurer Special Mode None Game No. 37 Rogue 0 Adventurer 37 Explorer 0 Win Type - Total 1 Types 0/0/1/0/0/0/0/0/0 Lore% 8 Gallery% 41 Achievement% 29 Wizard Run 0 Options --------- Layout 1 ASCII 0 Keyboard 1 Movement Arrows Keybinds 0 Fullscreen 1 Font 24/Smallcaps Map View 50x35 Zoom Use 0% Tactical HUD 1 Map Filters NONE Filters NONE Steam 1 RUN: a21fbd09-7431-44a6-a343-c5337b2a4777